fUST/lending_fUST_20250529
["ID","MTS","AMOUNT","RATE_DAILY","PERIOD"]
[362943671,1748529041379,-500.0,0.00021918,2]
[362943672,1748529041389,-500.0,0.00021918,2]
[362943673,1748529041399,-500.0,0.00021918,2]
[362943674,1748529041408,-500.0,0.00021918,2]
[362943675,1748529041417,-500.0,0.00021918,2]
[362943676,1748529041426,-263.01287677,0.00021918,2]
[362943677,1748529041435,-500.0,0.00021918,2]
[362943678,1748529041444,-572.65,0.00022,7]
[362943679,1748529041453,-1462.46,0.00022,7]
[362943680,1748529041462,-58774.27,0.00022,7]
[362943681,1748529041471,-52076.22,0.00022,2]
[362943682,1748529041480,-160.0,0.00022037,2]
[362943683,1748529041489,-1578.61,0.00022191,2]
[362943684,1748529041498,-200.0,0.00022191,2]
[362943685,1748529041507,-200.0,0.00022191,2]
[362943686,1748529041516,-200.0,0.00022191,2]
[362943687,1748529041525,-200.0,0.00022191,2]
[362943688,1748529041534,-200.0,0.00022191,2]
[362943689,1748529041543,-200.0,0.00022191,2]
[362943690,1748529041555,-256.34727452,0.00022191,2]
[362943691,1748529041564,-1578.61,0.00022465,2]
[362943692,1748529041573,-1578.61,0.00022739,2]
[362943693,1748529041583,-8455.03,0.000228,2]
[362943694,1748529041592,-1246.06244584,0.00022975,2]
[362943695,1748529041601,-154176.86001175,0.00022999,2]
[362943696,1748529041610,-1578.61,0.00023013,2]
[362943697,1748529041619,-424.295427,0.00023053,2]
[362943698,1748529041629,-1578.61,0.00023287,2]
[362943699,1748529041638,-207.4,0.00023307,2]
[362943700,1748529041801,-500.0,0.00023356,2]
[362943701,1748529041810,-153.0,0.00023425,2]
[362943702,1748529041819,-315.2654308,0.00023425,2]
[362943703,1748529041828,-153.0,0.00023425,2]
[362943704,1748529041837,-153.0,0.00023425,2]
[362943705,1748529041846,-153.0,0.00023425,2]
[362943706,1748529041855,-1578.61,0.00023561,2]
[362943707,1748529041863,-52076.22,0.000236,2]
[362943708,1748529041872,-411.542,0.00023753,2]
[362943709,1748529041881,-1578.61,0.00023835,2]
[362943710,1748529041890,-1218.18207361,0.000239,2]
[362943711,1748529041899,-153.0,0.00023973,2]
[362943712,1748529041907,-153.0,0.00023973,2]
[362943713,1748529041916,-168638.87861,0.00023999,2]
[362943714,1748529041925,-55152.5640452,0.00024,5]
[362943715,1748529041934,-5000.0,0.00024054,2]
[362943716,1748529041943,-500.0,0.00024056,2]
[362943717,1748529041952,-1078.85410523,0.000241,3]
[362943718,1748529041961,-150.0,0.00024109,2]
[362943719,1748529041970,-1578.61,0.00024109,2]
[362943720,1748529041979,-460.3702483,0.00024137,2]
[362943721,1748529041988,-364.176416,0.00024137,2]
[362943722,1748529041997,-364.176416,0.00024137,2]
[362943723,1748529042006,-364.176416,0.00024137,2]
[362943724,1748529042015,-364.176416,0.00024137,2]
[362943725,1748529042024,-364.176416,0.00024137,2]
[362943726,1748529042033,-364.176416,0.00024137,2]
[362943727,1748529042043,-364.176416,0.00024137,2]
[362943728,1748529042055,-364.176416,0.00024137,2]
[362943729,1748529042064,-58774.27,0.000242,7]
[362943730,1748529042073,-306.0,0.00024247,2]
[362943731,1748529042082,-1462.46,0.000243,7]
[362943732,1748529042091,-639.55038236,0.00024347,2]
[362943733,1748529042100,-1578.61,0.00024383,2]
[362943734,1748529042108,-572.65,0.000245,7]
[362943735,1748529042117,-528.06,0.000245,2]
[362943736,1748529042127,-2000.0,0.000245,2]
[362943737,1748529042147,-415.494705,0.000245,3]
[362943738,1748529042158,-30231.89504901,0.000245,2]
[362943739,1748529042169,-150.0,0.000245,2]
[362943740,1748529042180,-153.0,0.00024521,2]
[362943741,1748529042191,-153.0,0.00024521,2]
[362943742,1748529042201,-321.9469918,0.00024521,2]
[362943743,1748529042210,-639.55038236,0.00024525,2]
[362943744,1748529042220,-20058.02774124,0.000246,2]
[362943745,1748529042229,-300.75750676,0.000246,30]
[362943746,1748529042238,-833.304715,0.00024613,15]
[362943747,1748529042248,-363.83885346,0.0002465,2]
[362943748,1748529042257,-35829.80574455,0.0002465,30]
[362943749,1748529042266,-12911.96599078,0.0002465,2]
[362943750,1748529042275,-86754.71,0.0002465,2]
[362943751,1748529042285,-446.0475,0.00024657,3]
[362943752,1748529042296,-1578.61,0.00024657,2]
[362943753,1748529042306,-200.0,0.00024658,15]
[362943754,1748529042315,-206.84255254,0.00024658,2]
[362943755,1748529042325,-494.59088157,0.00024658,2]
[362943756,1748529042335,-1246.06244584,0.00024666,2]
[362943757,1748529042345,-215.0738,0.00024676,2]
[362943759,1748529042358,-8455.03,0.000247,2]
[362943760,1748529042368,-639.55038236,0.00024725,2]
[362943761,1748529042378,-698.20276281,0.00024734,2]
[362943762,1748529042387,-961.18280829,0.00024756,2]
[362943763,1748529042397,-405.0,0.00024766,2]
[362943764,1748529042406,-12869.8054705,0.00024774,2]
[362943765,1748529042416,-20204.59,0.000248,30]
[362943766,1748529042425,-52076.22,0.000248,2]
[362943768,1748529042436,-12660.97845086,0.000248,30]
[362943769,1748529042445,-208446.87799142,0.00024888,2]
[362943770,1748529042454,-199.36839248,0.000249,2]
[362943771,1748529042464,-167.40859968,0.000249,2]
[362943772,1748529042474,-229.26895353,0.000249,3]
[362943773,1748529042483,-152.49,0.000249,31]
[362943774,1748529042493,-152.49,0.000249,31]
[362943776,1748529042502,-152.49,0.000249,31]
[362943777,1748529042511,-152.49,0.000249,31]
[362943780,1748529042521,-152.49,0.000249,31]
[362943782,1748529042530,-152.49,0.000249,31]
[362943784,1748529042539,-152.49,0.000249,31]
[362943787,1748529042552,-152.49,0.000249,31]
[362943789,1748529042561,-152.49,0.000249,31]
[362943791,1748529042571,-152.49,0.000249,31]
[362943792,1748529042580,-152.49,0.000249,31]
[362943794,1748529042589,-152.49,0.000249,31]
[362943796,1748529042599,-152.49,0.000249,31]
[362943798,1748529042609,-152.49,0.000249,31]
[362943800,1748529042618,-348517.36104694,0.000249,2]
[362943811,1748529042719,-256239.31644006,0.000249,2]
[362943813,1748529042729,-203.07711571,0.00024911,2]
[362943815,1748529042738,-203.07711571,0.00024923,2]
[362943817,1748529042748,-1578.61,0.00024931,2]
[362943819,1748529042757,-203.07711571,0.00024934,2]
[362943821,1748529042767,-203.07711571,0.00024946,2]
[362943823,1748529042777,-203.07711571,0.00024957,2]
[362943825,1748529042786,-203.07711571,0.00024969,2]
[362943827,1748529042800,-203.07711571,0.0002498,2]
[362943829,1748529042810,-22364.78020604,0.00024987,2]
[362943831,1748529042819,-203.07711571,0.00024992,2]
[362943833,1748529042828,-160.0,0.00024999,2]
[362943835,1748529042838,-215.0,0.00024999,30]
[362943837,1748529042847,-123477.10191486,0.00025,2]
[362943839,1748529042857,-10126.45598906,0.00025,3]
[362943841,1748529042866,-600.0,0.00025,30]
[362943843,1748529042876,-549093.61190105,0.00025,30]
[362943845,1748529042888,-3800.05822073,0.00025,30]
[362943848,1748529042899,-4620.5799796,0.00025,30]
[362943850,1748529042911,-2035.50311105,0.00025,30]
[362943852,1748529042923,-2581.02590686,0.00025,30]
[362943854,1748529042934,-10718.0,0.00025,30]
[362943864,1748529042977,-261.9481575,0.000184,2]
[362943867,1748529042986,-261.94815749,0.000249,12]
[362943870,1748529042995,-2120.90368502,0.00025,30]
[362943872,1748529043007,-1344.64279447,0.00025,30]
[362943876,1748529043018,-17579.6629579,0.00025,30]
[362943879,1748529043029,-59788.06061926,0.00025,30]
[362943886,1748529043058,-763.4,0.00024613,15]
[362943888,1748529043067,-4386.52860068,0.00025,30]
[362943892,1748529043078,-407.41229366,0.00025,30]
[362943895,1748529043089,-678968.34162658,0.00025,30]
[362943896,1748529043099,-201.63759788,0.00025,30]
[362943897,1748529043109,-15616.86306719,0.00025,7]
[362943899,1748529043118,-607317.38545026,0.00025,30]
[362943901,1748529043130,-15107.26424466,0.00025,30]
[362943904,1748529043142,-53795.25798005,0.00025,30]
[362943995,1748529046393,-430.0,0.00019178,2]
[362943997,1748529046404,-430.0,0.00019452,2]
[362943999,1748529046415,-430.0,0.00019726,2]
[362944001,1748529046425,-153.0,0.00023973,2]
[362944003,1748529046435,-338.94080849,0.0002499,10]
[362944005,1748529046447,-305.91919151,0.0002499,10]
[362944007,1748529046456,-7970.88368479,0.00025,30]
[362944011,1748529046483,-430.0,0.0002,2]
[362944013,1748529046493,-5900.0383178,0.00025,30]
[362944014,1748529046502,-15101.942322,0.00025,10]
[362944015,1748529046514,-462.14600001,0.00025,10]
[362944016,1748529046525,-6024.45938876,0.00025,10]
[362944017,1748529046534,-19179.59494193,0.00025,2]
[362944018,1748529046544,-1060.08712647,0.00025,2]
[362944019,1748529046556,-10301.24040086,0.00025,120]
[362944020,1748529046565,-2610.60086492,0.00025,2]
[362944021,1748529046576,-207.08988783,0.00025,2]
[362944022,1748529046586,-162.85405229,0.00025,120]
[362944023,1748529046595,-10364.0,0.00025,2]
[362944024,1748529046605,-6733.75752066,0.00025,30]
[362944501,1748529086651,-218.95493723,0.0001624,2]
[362944506,1748529402436,150.0,0.00013545,2]
[362944507,1748529424616,5000.0,0.00014051,2]
[362944508,1748529439855,5000.0,0.00014051,2]
[362944509,1748529455725,5000.0,0.00014051,2]
[362944510,1748529471017,5000.0,0.00014051,2]
[362944511,1748529471788,150.0,0.00013583,2]
[362944512,1748529486889,5000.0,0.00014051,2]
[362944513,1748529488010,-150.0,0.0001419,2]
[362944514,1748529538776,150.0,0.00013615,2]
[362944517,1748529612576,510.0,0.00023,120]
[362944518,1748529625734,511.0,0.00023,120]
[362944519,1748529650204,515.0,0.00023,120]
[362944520,1748529674790,150.0,0.00013986,2]
[362944521,1748529689364,5000.0,0.00014051,2]
[362944522,1748529705673,5000.0,0.00014051,2]
[362944523,1748529721546,5000.0,0.00014051,2]
[362944524,1748529737923,5000.0,0.00014051,2]
[362944525,1748529754111,5000.0,0.00014051,2]
[362944526,1748529769823,5000.0,0.00014051,2]
[362944528,1748529785833,5000.0,0.00014051,2]
[362944529,1748529801384,5000.0,0.00014051,2]
[362944530,1748529816743,5000.0,0.00014051,2]
[362944531,1748529833949,5000.0,0.00014051,2]
[362944532,1748529849366,5000.0,0.00014051,2]
[362944533,1748529865282,5000.0,0.00014051,2]
[362944534,1748529881225,5000.0,0.00014051,2]
[362944535,1748529882604,150.0,0.00014041,2]
[362944536,1748529897029,5000.0,0.00014051,2]
[362944537,1748529912707,5000.0,0.00014051,2]
[362944538,1748529927770,5000.0,0.00014051,2]
[362944539,1748529943265,5000.0,0.00014051,2]
[362944540,1748529959135,150.0,0.00013675,2]
[362944541,1748529959721,5000.0,0.00014051,2]
[362944542,1748529975865,5000.0,0.00014051,2]
[362944543,1748529991526,5000.0,0.00014051,2]
[362944544,1748530006584,5000.0,0.00014051,2]
[362944545,1748530022975,5000.0,0.00014051,2]
[362944546,1748530038259,5000.0,0.00014051,2]
[362944547,1748530054299,5000.0,0.00014051,2]
[362944548,1748530070066,5000.0,0.00014051,2]
[362944549,1748530085859,5000.0,0.00014051,2]
[362944550,1748530101744,5000.0,0.00014051,2]
[362944551,1748530105095,150.0,0.00013691,2]
[362944552,1748530119009,5000.0,0.00014051,2]
[362944553,1748530134356,5000.0,0.00014051,2]
[362944554,1748530149307,-259.0926346,0.00014211,2]
[362944555,1748530149330,-174.8095542,0.00014322,2]
[362944556,1748530149352,-150.0,0.00014343,2]
[362944557,1748530149380,-150.0,0.00014995,2]
[362944558,1748530149404,-458.11680592,0.00015115,2]
[362944559,1748530149429,-300.0,0.00015209,2]
[362944560,1748530149452,-300.0,0.0001521,2]
[362944561,1748530149475,-152.70630655,0.0001521,2]
[362944562,1748530149499,-500.0,0.0001521,2]
[362944563,1748530149524,-500.0,0.0001521,2]
[362944564,1748530149547,-500.0,0.0001521,2]
[362944565,1748530149571,-487.11950652,0.0001521,2]
[362944566,1748530149594,-500.0,0.0001521,2]
[362944567,1748530149620,-400.0,0.0001521,2]
[362944568,1748530149644,-500.0,0.0001521,2]
[362944569,1748530149668,-500.0,0.0001521,2]
[362944570,1748530149691,-500.0,0.0001521,2]
[362944571,1748530149716,-500.0,0.0001521,2]
[362944572,1748530149741,-500.0,0.0001521,2]
[362944573,1748530149764,-500.0,0.0001521,2]
[362944574,1748530149787,-500.0,0.0001521,2]
[362944575,1748530149814,-500.0,0.0001521,2]
[362944576,1748530149837,-500.0,0.0001521,2]
[362944577,1748530149860,-500.0,0.0001521,2]
[362944578,1748530149884,-500.0,0.0001521,2]
[362944579,1748530149912,-500.0,0.0001521,2]
[362944580,1748530149935,-500.0,0.0001521,2]
[362944581,1748530149965,-500.0,0.0001521,2]
[362944582,1748530149991,-500.0,0.0001521,2]
[362944583,1748530150013,-500.0,0.0001521,2]
[362944584,1748530150037,-500.0,0.0001521,2]
[362944585,1748530150061,-500.0,0.0001521,2]
[362944586,1748530150086,-205.75392461,0.0001521,2]
[362944587,1748530150109,-500.0,0.0001521,2]
[362944588,1748530150135,-500.0,0.0001521,2]
[362944589,1748530150160,-500.0,0.0001521,2]
[362944590,1748530150182,-300.0,0.00015211,2]
[362944591,1748530150204,-300.0,0.00015211,2]
[362944592,1748530150415,-300.0,0.00015211,2]
[362944593,1748530150441,-1200.0,0.00015211,2]
[362944594,1748530150464,-45774.26125184,0.00015211,2]
[362944595,1748530150495,-500.0,0.00015212,2]
[362944596,1748530150522,-500.0,0.00015212,2]
[362944597,1748530150547,-1363.8139982,0.00015212,2]
[362944598,1748530150574,-500.0,0.00015212,2]
[362944599,1748530150598,-500.0,0.00015212,2]
[362944600,1748530150622,-512.28490133,0.00015212,2]
[362944601,1748530150647,-1363.8139982,0.00015212,2]
[362944602,1748530150671,-447.37289037,0.00015212,2]
[362944603,1748530150696,-500.0,0.00015212,2]
[362944604,1748530150720,-1363.8139982,0.00015212,2]
[362944605,1748530150748,-1363.8139982,0.00015212,2]
[362944606,1748530150773,-1363.8139982,0.00015212,2]
[362944607,1748530150797,-1363.8139982,0.00015212,2]
[362944608,1748530150823,-1363.8139982,0.00015212,2]
[362944609,1748530150848,-1363.8139982,0.00015212,2]
[362944610,1748530150871,-500.0,0.00015212,2]
[362944611,1748530150896,-1363.8139982,0.00015212,2]
[362944612,1748530150919,-500.0,0.00015212,2]
[362944613,1748530150944,-1363.8139982,0.00015212,2]
[362944614,1748530150968,-1363.8139982,0.00015212,2]
[362944615,1748530150994,-500.0,0.00015212,2]
[362944616,1748530151018,-1363.8139982,0.00015212,2]
[362944617,1748530151044,-1380.86167318,0.00015212,2]
[362944618,1748530151074,-1380.86167318,0.00015212,2]
[362944619,1748530151100,-1380.86167318,0.00015212,2]
[362944620,1748530151125,-1380.86167318,0.00015212,2]
[362944621,1748530151156,-1380.86167318,0.00015212,2]
[362944622,1748530151181,-1380.86167318,0.00015212,2]
[362944623,1748530151207,-1380.86167318,0.00015212,2]
[362944624,1748530151233,-1521.02432422,0.00015212,2]
[362944625,1748530151259,-1521.02432422,0.00015212,2]
[362944626,1748530151288,-1521.02432422,0.00015212,2]
[362944627,1748530151313,-1521.02432422,0.00015212,2]
[362944628,1748530151339,-1521.02432422,0.00015212,2]
[362944629,1748530151362,-1521.02432422,0.00015212,2]
[362944630,1748530151384,-29979.9468759,0.00015215,2]
[362944631,1748530151406,-166.65,0.00015647,2]
[362944632,1748530151429,-210.064798,0.00016266,2]
[362944633,1748530151451,-208.31,0.00016299,2]
[362944634,1748530151474,-458.11680588,0.00016513,2]
[362944635,1748530151500,-180.0,0.00016642,2]
[362944636,1748530151523,-392.0,0.00016643,2]
[362944637,1748530151547,-313.0,0.00016644,2]
[362944638,1748530151571,-480.0,0.00016729,2]
[362944639,1748530151594,-249.97,0.00016951,2]
[362944640,1748530151617,-291.63,0.00017602,2]
[362944641,1748530151640,-458.11680588,0.00017911,2]
[362944642,1748530151663,-333.29,0.00018254,2]
[362944643,1748530151692,-207.44302118,0.000184,2]
[362944644,1748530151721,-207.443021,0.000184,2]
[362944645,1748530151750,-207.443021,0.000184,2]
[362944646,1748530151778,-207.443021,0.000184,2]
[362944647,1748530151806,-207.443021,0.000184,2]
[362944648,1748530151834,-207.443021,0.000185,2]
[362944649,1748530151864,-207.443021,0.0001882,2]
[362944650,1748530151886,-838.88061524,0.000189,2]
[362944651,1748530151920,5000.0,0.00014051,2]
[362944652,1748530154149,-154.66771199,0.000189,2]
[362944653,1748530154172,-374.95,0.00018906,2]
[362944654,1748530154202,-207.443021,0.0001914,2]
[362944655,1748530154224,-430.0,0.00019178,2]
[362944656,1748530154251,-430.0,0.00019178,2]
[362944657,1748530154273,-430.0,0.00019178,2]
[362944658,1748530154296,-430.0,0.00019178,2]
[362944659,1748530154321,-430.0,0.00019178,2]
[362944660,1748530154342,-199.65,0.00019178,2]
[362944661,1748530154364,-390.0,0.00019178,2]
[362944662,1748530154386,-430.0,0.00019178,2]
[362944663,1748530154407,-430.0,0.00019178,2]
[362944664,1748530154429,-430.0,0.00019178,2]
[362944665,1748530154450,-571.85411967,0.00019178,2]
[362944666,1748530154472,-163.12026565,0.00019178,2]
[362944667,1748530154499,-430.0,0.00019178,2]
[362944668,1748530154523,-430.0,0.00019178,2]
[362944669,1748530154546,-430.0,0.00019178,2]
[362944670,1748530154568,-430.0,0.00019178,2]
[362944671,1748530154588,-430.0,0.00019178,2]
[362944672,1748530154609,-430.0,0.00019178,2]
[362944673,1748530154631,-430.0,0.00019178,2]
[362944674,1748530154654,-171.23,0.00019178,2]
[362944675,1748530154675,-430.0,0.00019178,2]
[362944676,1748530154696,-430.0,0.00019178,2]
[362944677,1748530154718,-199.17429527,0.00019178,2]
[362944678,1748530154746,-430.0,0.00019178,2]
[362944679,1748530154769,-430.0,0.00019178,2]
[362944680,1748530154790,-430.0,0.00019178,2]
[362944681,1748530154812,-430.0,0.00019178,2]
[362944682,1748530154835,-430.0,0.00019178,2]
[362944683,1748530154859,-430.0,0.00019178,2]
[362944684,1748530154880,-430.0,0.00019178,2]
[362944685,1748530154900,-430.0,0.00019178,2]
[362944686,1748530154923,-1016.57,0.00019178,2]
[362944687,1748530154944,-430.0,0.00019178,2]
[362944688,1748530154965,-430.0,0.00019178,2]
[362944689,1748530154990,-430.0,0.00019178,2]
[362944690,1748530155011,-430.0,0.00019178,2]
[362944691,1748530155033,-430.0,0.00019178,2]
[362944692,1748530155060,-430.0,0.00019178,2]
[362944693,1748530155081,-430.0,0.00019178,2]
[362944694,1748530155104,-430.0,0.00019178,2]
[362944695,1748530155127,-430.0,0.00019178,2]
[362944696,1748530155150,-430.0,0.00019178,2]
[362944697,1748530155172,-432.04928923,0.00019178,2]
[362944698,1748530155194,-430.0,0.00019178,2]
[362944699,1748530155215,-430.0,0.00019178,2]
[362944700,1748530155237,-430.0,0.00019178,2]
[362944701,1748530155261,-430.0,0.00019178,2]
[362944702,1748530155283,-430.0,0.00019178,2]
[362944703,1748530155304,-430.0,0.00019178,2]
[362944704,1748530155325,-430.0,0.00019178,2]
[362944705,1748530155347,-412.89542418,0.00019178,2]
[362944706,1748530155368,-430.0,0.00019178,2]
[362944707,1748530155390,-430.0,0.00019178,2]
[362944708,1748530155411,-430.0,0.00019178,2]
[362944709,1748530155431,-411.02397448,0.00019178,2]
[362944710,1748530155454,-430.0,0.00019178,2]
[362944711,1748530155475,-430.0,0.00019178,2]
[362944712,1748530155499,-430.0,0.00019178,2]
[362944713,1748530155520,-150.88239591,0.00019178,2]
[362944714,1748530155542,-430.0,0.00019178,2]
[362944715,1748530155565,-430.0,0.00019178,2]
[362944716,1748530155588,-430.0,0.00019178,2]
[362944717,1748530155612,-430.0,0.00019178,2]
[362944718,1748530155638,-430.0,0.00019178,2]
[362944719,1748530155662,-430.0,0.00019178,2]
[362944720,1748530155685,-430.0,0.00019178,2]
[362944721,1748530155707,-430.0,0.00019178,2]
[362944722,1748530155732,-430.0,0.00019178,2]
[362944723,1748530155761,-430.0,0.00019178,2]
[362944724,1748530155784,-430.0,0.00019178,2]
[362944725,1748530155807,-430.0,0.00019178,2]
[362944726,1748530155830,-430.0,0.00019178,2]
[362944727,1748530155852,-430.0,0.00019178,2]
[362944728,1748530155874,-430.0,0.00019178,2]
[362944729,1748530155896,-430.0,0.00019178,2]
[362944730,1748530155918,-430.0,0.00019178,2]
[362944731,1748530155940,-430.0,0.00019178,2]
[362944732,1748530155963,-500.0,0.00019178,2]
[362944733,1748530155985,-463.06883908,0.00019178,2]
[362944734,1748530156035,-36.93116092,0.00019178,2]
[362944735,1748530156058,-500.0,0.00019178,2]
[362944736,1748530156084,-236.18068195,0.00019178,2]
[362944737,1748530156107,-500.0,0.00019178,2]
[362944738,1748530156130,-323.61972031,0.00019178,2]
[362944739,1748530167153,-5000.0,0.00018986,2]
[362944740,1748530167178,-176.38027969,0.00019178,2]
[362944741,1748530167202,-430.0,0.00019178,2]
[362944742,1748530167224,-430.0,0.00019178,2]
[362944743,1748530167254,-430.0,0.00019178,2]
[362944744,1748530167302,-430.0,0.00019178,2]
[362944745,1748530167326,-430.0,0.00019178,2]
[362944746,1748530167349,-430.0,0.00019178,2]
[362944747,1748530167371,-430.0,0.00019178,2]
[362944748,1748530167394,-430.0,0.00019178,2]
[362944749,1748530167419,-430.0,0.00019178,2]
[362944750,1748530167441,-430.0,0.00019178,2]
[362944751,1748530167466,-430.0,0.00019178,2]
[362944752,1748530167491,-430.0,0.00019178,2]
[362944753,1748530167520,-179.551733,0.00019178,2]
[362944754,1748530167543,-458.11680588,0.00019309,2]
[362944755,1748530167566,-345.67572661,0.00019452,2]
[362944756,1748530167588,-430.0,0.00019452,2]
[362944757,1748530167612,-430.0,0.00019452,2]
[362944758,1748530167636,-430.0,0.00019452,2]
[362944759,1748530167659,-430.0,0.00019452,2]
[362944760,1748530167684,-430.0,0.00019452,2]
[362944761,1748530167708,-315.63867083,0.00019452,2]
[362944762,1748530167733,-430.0,0.00019452,2]
[362944763,1748530167760,-1016.57,0.00019452,2]
[362944764,1748530167783,-430.0,0.00019452,2]
[362944765,1748530167809,-430.0,0.00019452,2]
[362944766,1748530167833,-381.79,0.00019452,2]
[362944767,1748530167856,-430.0,0.00019452,2]
[362944768,1748530167880,-430.0,0.00019452,2]
[362944769,1748530167902,-169.66,0.00019452,2]
[362944770,1748530167926,-535.69,0.00019452,2]
[362944771,1748530167951,-430.0,0.00019452,2]
[362944772,1748530167976,-430.0,0.00019452,2]
[362944773,1748530168010,-207.443021,0.0001946,2]
[362944774,1748530168032,-216.57840945,0.00019558,2]
[362944775,1748530168056,-200.0,0.000197,5]
[362944776,1748530168081,-200.0,0.000197,5]
[362944777,1748530168105,-201.64,0.000197,3]
[362944778,1748530168131,-552.96,0.00019726,2]
[362944779,1748530168158,-1016.57,0.00019726,2]
[362944780,1748530168181,-430.0,0.00019726,2]
[362944781,1748530168206,-430.0,0.00019726,2]
[362944782,1748530168231,-430.0,0.00019726,2]
[362944783,1748530168259,-186.74782972,0.00019726,2]
[362944784,1748530168284,-430.0,0.00019726,2]
[362944785,1748530168315,-207.443021,0.0001978,2]
[362944786,1748530168339,-1016.57,0.0002,2]
[362944787,1748530168366,-430.0,0.0002,2]
[362944788,1748530168392,-430.0,0.0002,2]
[362944789,1748530168424,-207.443021,0.000201,2]
[362944790,1748530168449,-1016.57,0.00020273,2]
[362944791,1748530168475,-208.0,0.00020273,2]
[362944792,1748530168504,-253.36202988,0.00020273,2]
[362944793,1748530168536,-207.443021,0.0002042,3]
[362944794,1748530168562,-1016.57,0.00020547,2]
[362944795,1748530168585,-226.665,0.00020568,2]
[362944796,1748530168608,-458.11680588,0.00020706,2]
[362944797,1748530168637,-207.443021,0.0002074,3]
[362944798,1748530168662,-1016.57,0.00020821,2]
[362944799,1748530168692,-207.443021,0.0002106,4]
[362944800,1748530168716,-1016.57,0.00021095,2]
[362944801,1748530168738,-500.0,0.00021164,2]
[362944802,1748530168762,-1016.57,0.00021369,2]
[362944803,1748530168792,-207.443021,0.0002138,5]
[362944804,1748530168818,-1016.57,0.00021643,2]
[362944805,1748530168848,-207.443021,0.000217,5]
[362944806,1748530168873,-498.42497836,0.00021818,2]
[362944807,1748530168898,-1016.57,0.00021917,2]
[362944808,1748530168921,-500.0,0.00021918,2]
[362944809,1748530168944,-500.0,0.00021918,2]
[362944810,1748530168968,-500.0,0.00021918,2]
[362944811,1748530168990,-500.0,0.00021918,2]
[362944812,1748530169018,-500.0,0.00021918,2]
[362944813,1748530169041,-500.0,0.00021918,2]
[362944814,1748530169063,-500.0,0.00021918,2]
[362944815,1748530169088,-500.0,0.00021918,2]
[362944816,1748530169110,-500.0,0.00021918,2]
[362944817,1748530169133,-500.0,0.00021918,2]
[362944818,1748530169156,-263.01287677,0.00021918,2]
[362944819,1748530169178,-500.0,0.00021918,2]
[362944820,1748530169201,-500.0,0.00021918,2]
[362944821,1748530169223,-1006.85,0.0002199,10]
[362944822,1748530169247,-509.03,0.00022,7]
[362944823,1748530169269,-3926.29882705,0.00022,2]
[362944824,1748530169307,-4659.60117295,0.00022,2]
[362944825,1748530169331,-35163.54343921,0.00022,7]
[362944826,1748530169386,-2381.71023958,0.00022,7]
[362944827,1748530171168,-9654.23782167,0.00022,7]
[362944829,1748530220440,211.504758,0.00013699,2]
[362944899,1748530232188,-2132.51067128,0.00014656,2]
[362944905,1748530232233,-804.79,0.00014656,2]
[362944930,1748530232475,-2062.69932872,0.00014656,2]
[362944933,1748530232485,-150.0,0.00014804,2]
[362944935,1748530232495,-207.443021,0.000184,2]
[362944937,1748530232504,-207.443021,0.000184,2]
[362944939,1748530232514,-207.443021,0.000184,2]